bitfinex-derivatives/quotes_SOLF0:USTF0_20250307
["timestamp","ask_amount","ask_price","bid_price","bid_amount"]
[1741380881075,203.78,147.31,147.13,89.90049966]
[1741380881275,38.08049966,147.35,147.16,38.08049966]
[1741380881480,20.56,147.34,147.16,38.08049966]
[1741380881779,20.56,147.3,147.14,1.8157]
[1741380881980,38.08049966,147.31,147.14,1.8157]
[1741380882183,0.04957316,147.23,147.21,0.04777979]
[1741380882377,51.94,147.29,147.21,0.04777979]
[1741380882571,51.94,147.29,147.14,1.8157]
[1741380882772,0.04730204,147.23,147.21,0.05102149]
[1741380882977,51.8,147.31,147.21,0.05102149]
[1741380883378,38.08049966,147.35,147.16,38.08049966]
[1741380883580,1.8459,147.36,147.25,0.04488308]
[1741380883886,53.5259,147.36,147.2,38.08049966]
[1741380884083,255.5,147.39,147.24,38.08049966]
[1741380884282,203.86,147.39,147.25,1.824]
[1741380884687,0.04285731,147.33,147.31,0.049705]
[1741380889985,0.04285731,147.33,147.32,6.7891]
[1741380890188,241.88049966,147.47,147.31,0.049705]
[1741380890385,1.18120259,147.49,147.32,38.08049966]
[1741380890585,6.7823,147.47,147.36,38.08049966]
[1741380890783,50.8,147.52,147.36,38.08049966]
[1741380890988,241.88049966,147.63,147.4,38.08049966]
[1741380891289,294.59089966,147.63,147.44,38.08049966]
[1741380891490,0.04630518,147.53,147.5,0.04378604]
[1741380891696,0.04630518,147.53,147.5,6.82418604]
[1741380891992,294.55089966,147.63,147.5,0.04859493]
[1741380892189,0.04464788,147.53,147.5,0.04859493]
[1741380892389,295.73072065,147.63,147.45,1.8647]
[1741380892594,0.04828685,147.53,147.5,0.04734378]
[1741380892894,295.73072065,147.63,147.45,1.8647]
[1741380893088,0.04395803,147.53,147.5,0.05200223]
[1741380893490,295.73072065,147.63,147.45,1.8647]
[1741380893689,0.04902394,147.53,147.5,0.04811588]
[1741380893889,0.04902394,147.53,147.45,1.8647]
[1741380894092,0.04941783,147.5,147.48,0.04318411]
[1741380894302,241.88049966,147.63,147.45,1.8647]
[1741380894488,6.7797,147.53,147.45,1.8647]
[1741380894696,241.88049966,147.63,147.45,1.8647]
[1741380895291,241.88049966,147.63,147.26,94.37697089]
[1741380895292,38.08049966,147.46,147.21,38.08049966]
[1741380895489,38.08049966,147.41,147.25,1.9296]
[1741380895691,0.05059143,147.35,147.32,0.04937318]
[1741380896392,38.08049966,147.49,147.32,3.44937318]
[1741380896692,38.08049966,147.49,147.33,3.8027]
[1741380897496,0.04352582,147.42,147.4,0.04330747]
[1741380897790,38.08049966,147.49,147.33,3.8027]
[1741380897988,0.0475269,147.42,147.4,0.04588674]
[1741380898599,6.785,147.41,147.4,0.04588674]
[1741380899298,0.0475269,147.42,147.4,0.04588674]
[1741380899597,6.8324269,147.42,147.4,0.04588674]
[1741380899802,0.0475269,147.42,147.4,0.04588674]
[1741380899999,6.785,147.41,147.4,0.04588674]
[1741380900293,0.0475269,147.42,147.28,38.08049966]
[1741380900498,38.08049966,147.51,147.32,38.08049966]
[1741380900700,38.08049966,147.51,147.33,47.52]
[1741380900897,38.08049966,147.43,147.29,1.8828]
[1741380901094,47.58,147.42,147.29,1.8828]
[1741380901296,0.04363544,147.37,147.35,0.04459503]
[1741380901496,6.7873,147.36,147.35,0.04459503]
[1741380902189,0.04286361,147.37,147.35,0.04459503]
[1741380902395,47.36,147.5,147.35,3.44459503]
[1741380902701,47.36,147.5,147.36,1.8383]
[1741380902997,39.26156194,147.55,147.37,47.3]
[1741380903302,85.38049966,147.59,147.37,49.2237]
[1741380903495,38.08049966,147.59,147.45,0.045274]
[1741380903694,47.3,147.58,147.45,0.045274]
[1741380903900,6.7817,147.49,147.37,49.2237]
[1741380904203,47.3,147.58,147.37,49.2237]
[1741380904399,58.64049966,147.55,147.37,49.2237]
[1741380904602,38.08049966,147.51,147.37,1.9237]
[1741380904795,0.04633226,147.47,147.45,1.634e-05]
[1741380904991,38.12683192,147.47,147.32,47.2]
[1741380905198,38.08049966,147.47,147.33,1.8309]
[1741380906097,6.7859,147.4,147.33,1.8309]
[1741380906305,38.08049966,147.47,147.33,1.8309]
[1741380906503,0.04366169,147.38,147.35,0.05036855]
[1741380906804,38.08049966,147.48,147.31,1.8878]
[1741380906998,0.04292944,147.38,147.35,0.04440423]
[1741380907198,38.08049966,147.48,147.35,0.04356466]
[1741380907407,0.04785277,147.38,147.35,0.04356466]
[1741380907702,46.8,147.43,147.4,1.054e-05]
[1741380907904,0.05067284,147.38,147.32,1.8309]
[1741380908203,46.8,147.43,147.28,1.8559]
[1741380908405,38.08049966,147.4,147.28,1.8559]
[1741380908896,38.08049966,147.4,147.26,1.9649]
[1741380908897,0.04798992,147.35,147.33,0.04360152]
[1741380909100,0.2247,147.46,147.23,1.8559]
[1741380909101,84.64049966,147.36,147.23,1.8559]
[1741380909400,46.56,147.35,147.23,1.8559]
[1741380909596,38.08049966,147.32,147.23,1.8559]
[1741380909804,46.56,147.35,147.23,1.8559]
[1741380910101,38.08049966,147.37,147.23,1.8559]
[1741380910302,0.04820829,147.3,147.28,0.04852598]
[1741380910601,6.7916,147.27,147.23,1.8559]
[1741380910806,0.04803308,147.3,147.28,0.05096573]
[1741380911002,46.64,147.31,147.12,38.08049966]
[1741380911203,38.08049966,147.29,147.15,3.8371]
[1741380911705,38.08049966,147.25,147.05,75.1101835]
[1741380911893,38.08049966,147.21,147.06,3.8371]
[1741380912098,6.797,147.15,147.14,0.04739988]
[1741380912403,38.08049966,147.21,147.06,3.8371]
[1741380912604,38.08049966,147.25,147.06,3.8371]
[1741380912805,1.824,147.28,147.08,38.08049966]
[1741380913005,1.824,147.28,147.06,3.8371]
[1741380913006,38.08049966,147.25,147.06,3.8371]
[1741380913201,38.08049966,147.21,147.06,3.8371]
[1741380913405,0.0441541,147.17,147.14,0.0491167]
[1741380913798,0.0441541,147.17,147.06,3.8371]
[1741380914097,46.4,147.2,147.06,3.8371]
[1741380914509,38.08049966,147.17,147.06,1.9071]
[1741380914709,38.08049966,147.13,146.95,1.9836]
[1741380915006,46.16,147.12,147.1,0.04483484]
[1741380915199,38.08049966,147.18,147.0,84.18049966]
[1741380915801,38.08049966,147.1,146.96,1.878]
[1741380916007,46.02,147.09,146.88,84.10049966]
[1741380916203,46.02,147.09,146.94,1.183754]
[1741380916408,84.08049966,147.14,146.99,0.0484627]
[1741380916604,84.08049966,147.14,147.0,6.8039]
[1741380916811,38.08049966,147.1,146.94,1.18373386]
[1741380917020,1.9832,147.13,146.93,1.9367]
[1741380917206,38.08049966,147.06,146.93,1.9367]
[1741380917406,46.02,147.07,146.93,1.9367]
[1741380917618,0.04738367,147.01,146.98,0.04656197]
[1741380918005,84.10049966,147.1,146.93,47.9167]
[1741380918209,0.05084092,147.01,146.98,0.04993115]
[1741380918607,84.10049966,147.1,146.94,1.9367]
[1741380918807,0.05146831,147.01,146.98,0.05148316]
[1741380919212,38.08049966,147.06,146.94,1.9367]
[1741380919512,0.05120806,147.01,146.87,10.5431]
[1741380919814,38.08049966,147.02,146.87,3.7336]
[1741380920007,38.08049966,147.02,146.89,6.8086]
[1741380920208,45.84,147.03,146.87,3.7336]
[1741380920404,38.08049966,147.02,146.88,6.809]
[1741380920606,38.08049966,147.02,146.87,3.7336]
[1741380920811,0.04381796,146.96,146.94,0.04308085]
[1741380921213,38.08049966,147.1,146.94,3.44308085]
[1741380921414,45.64,147.11,146.94,3.44308085]
[1741380921605,47.6432,147.13,146.95,1.8728]
[1741380921912,47.6432,147.13,146.96,1.8156]
[1741380922112,1.9832,147.13,146.96,47.4556]
[1741380922309,1.9832,147.13,146.97,1.8632]
[1741380922813,0.04792134,147.06,147.03,0.05206915]
[1741380923210,90.49709966,147.16,147.04,6.802]
[1741380923411,0.0472645,147.06,147.03,0.05131839]
[1741380923611,83.66049966,147.08,146.97,1.8632]
[1741380923813,45.78,147.13,146.97,1.8632]
[1741380924009,0.04302,147.06,146.97,1.8632]
[1741380924209,0.04302,147.06,147.05,6.8016]
[1741380924515,45.9,147.23,147.03,40.65738485]
[1741380924708,40.65738485,147.25,147.07,40.65738485]
[1741380924913,45.9,147.26,147.08,3.7758]
[1741380925117,45.9,147.26,147.15,6.7967]
[1741380925314,1.9718,147.28,147.08,3.7758]
[1741380925514,47.8318,147.28,147.08,3.7758]
[1741380925711,0.04835897,147.19,147.17,0.04933312]
[1741380926119,47.8318,147.28,147.08,3.7758]
[1741380926318,0.04860679,147.19,147.17,0.04352749]
[1741380926513,61.21738485,147.25,147.08,3.7758]
[1741380926717,0.04323339,147.19,147.17,0.04397588]
[1741380927022,47.8318,147.28,147.17,0.04397588]
[1741380927222,0.05048537,147.19,147.17,0.04397588]
[1741380927522,40.65738485,147.25,147.21,0.0438937]
[1741380927721,40.65738485,147.25,147.08,3.7758]
[1741380927722,0.04678865,147.19,147.08,3.7758]
[1741380928111,244.65738485,147.29,147.12,0.04939629]
[1741380928316,1.8088,147.32,147.15,40.65738485]
[1741380929423,1.8088,147.32,147.13,45.62]
[1741380929623,0.04861169,147.25,147.22,0.04656307]
[1741380929925,45.42,147.27,147.13,45.62]
[1741380930115,40.70575321,147.25,147.22,0.04324139]
[1741380930315,40.65738485,147.2,147.08,1.8632]
[1741380930624,86.03738485,147.2,147.04,1.8271]
[1741380930825,40.65738485,147.16,147.04,1.8271]
[1741380931221,40.65738485,147.16,147.0,3.7181]
[1741380931520,6.7993,147.1,147.09,0.04914319]
[1741380931723,0.0511887,147.11,147.0,3.7181]
[1741380932115,40.65738485,147.12,147.0,1.891]
[1741380932316,45.24,147.13,146.95,1.9763]
[1741380932522,40.65738485,147.08,146.95,1.9763]
[1741380932924,0.04810481,147.03,147.0,0.0477809]
[1741380933123,52.0383,147.13,147.03,6.8025]
[1741380933327,45.24,147.13,146.95,42.63368485]
[1741380933527,85.89738485,147.13,146.95,1.9763]
[1741380933924,40.65738485,147.09,146.95,1.9763]
[1741380934130,6.7975,147.14,147.04,6.8017]
[1741380934326,248.98,147.16,147.01,0.04831799]
[1741380934521,40.65738485,147.13,146.95,1.9763]
[1741380935430,40.65738485,147.09,146.95,1.9763]
[1741380935625,0.04872501,147.05,147.03,0.04821456]
[1741380935831,0.04872501,147.05,146.92,1.8057]
[1741380936223,44.8,147.08,146.92,1.8057]
[1741380936927,0.04541647,147.01,146.99,0.04774379]
[1741380937330,1.18405607,147.12,146.99,3.4]
[1741380937527,44.6,147.13,147.06,6.801]
[1741380937730,44.6,147.13,147.0,1.9721]
[1741380938231,203.96,147.16,147.0,1.9721]
[1741380938438,44.44,147.21,147.03,40.65738485]
[1741380938626,40.65738485,147.19,147.07,0.04522961]
[1741380938824,40.65738485,147.11,146.9,40.65738485]
[1741380939030,85.17738485,147.11,146.92,5.7339]
[1741380939232,85.17738485,147.11,146.92,50.2539]
[1741380939432,40.65738485,147.07,146.92,1.9864]
[1741380939634,40.65738485,147.08,146.92,1.9864]
[1741380940039,40.65738485,147.0,146.99,1.497e-05]
[1741380940240,85.03738485,147.0,146.85,8.6292]
[1741380940544,85.03738485,147.0,146.85,1.8184]
[1741380941244,85.03738485,147.0,146.81,3.9155]
[1741380941245,6.8077,146.92,146.81,3.9155]
[1741380941435,0.04479472,146.94,146.91,0.04421755]
[1741380941629,0.04340576,146.94,146.91,0.04752411]
[1741380942342,44.12,147.06,146.91,3.44752411]
[1741380942636,40.65738485,147.16,146.92,44.39238485]
[1741380942836,6.7989,147.11,147.01,6.8034]
[1741380943038,248.24,147.17,146.96,44.14]
[1741380943234,40.65738485,147.12,146.96,44.14]
[1741380943439,0.0475546,147.08,147.05,0.05112027]
[1741380943840,6.8011,147.06,147.05,0.05112027]
[1741380944041,40.70493945,147.08,146.92,3.735]
[1741380944343,1.8953,147.09,146.92,44.39238485]
[1741380944542,44.02,147.1,146.92,44.39238485]
[1741380944933,40.65738485,147.08,146.92,3.735]
[1741380945149,0.04571508,147.02,147.0,0.04944309]
[1741380945546,0.05045833,147.02,147.0,0.04944309]
[1741380946537,6.8034,147.01,147.0,0.04944309]
[1741380946742,0.05045833,147.02,146.92,3.735]
[1741380946945,43.96,147.03,146.92,3.735]
[1741380947344,40.65738485,147.08,146.92,3.735]
[1741380947746,6.8518453,147.01,146.99,0.05052384]
[1741380947947,40.65738485,147.0,146.74,204.12]
[1741380948142,40.65738485,146.96,146.81,1.8094]
[1741380948351,43.56,146.95,146.81,1.8094]
[1741380948644,40.65738485,146.92,146.81,1.8094]
[1741380949044,0.04427504,146.88,146.85,0.04519716]
[1741380949345,6.8104,146.86,146.85,0.04519716]
[1741380949545,0.04427504,146.88,146.85,0.04519716]
[1741380950243,43.40427504,146.88,146.85,0.04519716]
[1741380950451,84.06165989,146.88,146.75,1.8883]
[1741380950639,63.92,146.88,146.68,1.18554857]
[1741380950844,6.8183,146.69,146.68,1.13869613]
[1741380951042,43.26,146.69,146.59,331.29405697]
[1741380951544,0.04935375,146.65,146.63,0.05027949]
[1741380952148,40.65738485,146.78,146.63,3.45027949]
[1741380952346,40.65738485,146.78,146.63,0.05027949]
[1741380952546,40.65738485,146.74,146.62,1.8277]
[1741380952856,40.65738485,146.7,146.57,414.37552667]
[1741380953448,0.04419412,146.65,146.62,0.04950231]
[1741380954241,6.8207,146.64,146.62,0.04950231]
[1741380956843,0.04419412,146.65,146.62,0.04950231]
[1741380957049,6.8211,146.63,146.62,0.04950231]
[1741380957253,6.8211,146.63,146.62,0.00014856]
[1741380957656,3.42,146.63,146.47,6.8283]
[1741380957856,40.65738485,146.6,146.42,42.4]
[1741380958058,42.4,146.59,146.42,42.4]
[1741380958459,40.65738485,146.56,146.42,42.4]
[1741380958757,40.65738485,146.56,146.36,40.65738485]
[1741380958758,0.05130126,146.5,146.48,0.05178798]
[1741380959156,6.829,146.47,146.38,6.8324]
[1741380959357,0.04935706,146.5,146.35,5.6137]
[1741380959559,83.01738485,146.52,146.41,0.04996745]
[1741380959852,40.65738485,146.48,146.35,5.6137]
[1741380960056,40.70461214,146.48,146.45,0.04766359]
[1741380960357,40.65738485,146.48,146.35,1.8678]
[1741380960557,204.54,146.49,146.35,1.8678]
[1741380960749,6.8309,146.42,146.35,1.8678]
[1741380960950,42.26,146.45,146.35,1.8678]
[1741380961350,42.26,146.45,146.39,0.03042509]
[1741380961554,0.04584415,146.41,146.39,0.03042509]
[1741380961758,0.04584415,146.41,146.31,6.836]
[1741380961956,40.65738485,146.43,146.27,3.7884]
[1741380962155,40.65738485,146.43,146.35,0.03042509]
[1741380962661,0.04387568,146.4,146.35,0.03042509]
[1741380964257,40.65738485,146.39,146.15,40.65738485]
[1741380964563,40.65738485,146.35,146.18,1.18951992]
[1741380964762,40.65738485,146.31,146.19,1.8174]
[1741380964960,42.0,146.3,146.19,1.8174]
[1741380965164,42.0,146.3,146.15,3.9573]
[1741380965459,0.04515654,146.26,146.15,1.9951]
[1741380965862,245.41738485,146.27,146.13,6.8444]
[1741380966164,0.04661387,146.22,146.1,1.9622]
[1741380966356,41.94661387,146.22,146.12,6.8448]
[1741380966558,40.65738485,146.13,145.92,1.19092434]
[1741380966766,40.65738485,146.09,145.92,1.19092434]
[1741380967059,40.65738485,146.05,145.89,3.8178]
[1741380967261,42.18,146.04,145.89,3.8178]
[1741380967462,40.65738485,146.01,145.89,10.6734]
[1741380967661,40.65738485,146.01,145.89,3.8178]
[1741380967968,40.65738485,145.97,145.66,20.56]
[1741380968166,42.28,145.96,145.83,1.19237292]
[1741380968367,42.28,145.96,145.81,361.87212684]
[1741380968554,40.65738485,145.9,145.81,361.87212684]
[1741380968759,40.65738485,145.86,145.81,361.87212684]
[1741380968952,40.65738485,145.82,145.81,23.64756276]
[1741380969163,84.51738485,145.82,145.79,452.34015855]
[1741380969364,87.93738485,145.82,145.65,90.42210208]
[1741380969662,41.06590936,145.79,145.65,90.42210208]
[1741380969967,0.05278439,145.76,145.62,1.8944]
[1741380970354,45.38,145.78,145.62,1.8944]
[1741380970871,41.06590936,145.87,145.65,41.06590936]
[1741380971054,41.06590936,145.87,145.62,1.8944]
[1741380971255,41.06590936,145.94,145.72,41.06590936]
[1741380971461,41.06590936,145.94,145.73,253.4679]
[1741380971764,41.06590936,145.94,145.73,207.1879]
[1741380971961,41.06590936,145.94,145.74,50.3182]
[1741380972267,0.04857247,145.85,145.82,0.04592387]
[1741380972561,41.06590936,145.98,145.82,0.04592387]
[1741380972864,46.44,146.08,145.83,46.44]
[1741380973060,46.44,146.08,145.84,248.25380936]
[1741380973061,41.06590936,146.07,145.84,248.25380936]
[1741380973364,46.42,146.08,145.88,41.06590936]
[1741380973562,46.42,146.08,145.89,1.9954]
[1741380973765,247.55805762,146.16,145.97,0.04667977]
[1741380974062,41.06590936,146.08,145.89,1.9954]
[1741380974659,41.06590936,145.96,145.77,46.34]
[1741380974859,46.34,145.95,145.77,48.2005]
[1741380975057,0.05058794,145.88,145.85,0.05000941]
[1741380975457,87.42590936,145.88,145.77,1.8605]
[1741380975662,46.40845149,145.88,145.85,0.04952116]
[1741380975867,41.06590936,145.84,145.68,1.8605]
[1741380976057,41.06590936,145.88,145.68,42.92640936]
[1741380976259,46.24,145.89,145.69,46.24]
[1741380976668,46.24,145.89,145.73,41.06590936]
[1741380976967,1273.64590936,146.08,145.8,0.05066057]
[1741380976968,41.38112787,145.99,145.8,0.05066057]
[1741380977161,41.38112787,146.03,145.82,41.38112787]
[1741380977367,46.26,146.02,145.82,246.94112787]
[1741380977561,46.26,146.02,145.79,1.816]
[1741380977768,41.38112787,145.94,145.8,1.37174211]
[1741380978085,46.22,145.93,145.79,1.816]
[1741380978263,0.04328802,145.88,145.86,0.04737587]
[1741380978672,46.22,145.93,145.86,0.04737587]
[1741380978874,0.04905109,145.88,145.86,0.04737587]
[1741380979168,41.38112787,145.9,145.86,0.04737587]
[1741380979366,0.05048982,145.88,145.86,0.04737587]
[1741380980074,0.05048982,145.88,145.75,7.68269087]
[1741380980369,41.38112787,146.02,145.81,41.38112787]
[1741380980562,87.42112787,146.02,145.82,48.0407]
[1741380980764,87.42112787,146.02,145.82,253.6807]
[1741380981262,0.04828096,145.93,145.91,0.05054167]
[1741380981467,8.096e-05,145.93,145.91,0.05054167]
[1741380981870,8.096e-05,145.93,145.85,41.38112787]
[1741380981871,8.096e-05,145.93,145.82,58.30370181]
[1741380982065,8.096e-05,145.93,145.83,41.32781326]
[1741380982276,46.04,146.02,145.83,41.32781326]
[1741380982480,45.8,146.01,145.83,41.32781326]
[1741380982771,41.32781326,145.95,145.81,1.37164803]
[1741380983071,0.0509982,145.93,145.91,0.05024683]
[1741380983267,45.86513862,145.93,145.81,1.37164803]
[1741380983469,45.86513862,145.93,145.91,0.04548353]
[1741380983676,45.82,145.93,145.81,1.37164803]
[1741380983876,45.8631989,145.93,145.91,0.04835995]
[1741380984167,45.86555822,145.93,145.91,2.385e-05]
[1741380984367,41.32781326,145.92,145.69,41.32781326]
[1741380984565,41.32781326,145.88,145.69,1.19359984]
[1741380984768,41.32781326,145.84,145.66,205.64]
[1741380984972,45.94,145.83,145.66,205.64]
[1741380985169,45.94,145.83,145.77,6.8611]
[1741380985365,45.94,145.83,145.67,1.8191]
[1741380985570,0.05161013,145.81,145.79,0.0424668]
[1741380985763,45.94,145.83,145.67,1.8191]
[1741380985964,0.05154486,145.81,145.79,0.0424668]
[1741380986273,247.02781326,145.8,145.5,41.32781326]
[1741380986471,41.32781326,145.7,145.5,41.32781326]
[1741380986679,45.84,145.69,145.52,1.19470622]
[1741380987070,41.32781326,145.62,145.31,205.7]
[1741380987267,41.32781326,145.62,145.41,5.8777]
[1741380987268,45.94,145.61,145.41,5.8777]
[1741380987467,41.32781326,145.58,145.41,5.8777]
[1741380987675,41.32781326,145.54,145.41,5.8777]
[1741380987868,0.05169027,145.52,145.41,5.8777]
[1741380988070,54.6127,145.53,145.41,12.756]
[1741380988267,41.32781326,145.46,145.37,1.19643133]
[1741380988467,41.32781326,145.42,145.37,1.19643133]
[1741380988669,41.32781326,145.42,145.21,45.22061326]
[1741380988867,0.05204543,145.41,145.29,1.19731636]
[1741380989072,48.08,145.44,145.25,41.32781326]
[1741380989273,0.04525648,145.36,145.25,41.32781326]
[1741380989470,0.04525648,145.36,145.21,45.22061326]
[1741380989680,48.08,145.44,145.25,41.32781326]
[1741380989979,41.32781326,145.5,145.26,48.9]
[1741380990278,41.32781326,145.42,145.22,1.19731636]
[1741380990482,90.78781326,145.46,145.25,41.32781326]
[1741380990783,41.32781326,145.32,145.14,475.06175028]
[1741380990974,49.6,145.31,145.14,475.06175028]
[1741380991172,41.32781326,145.24,145.22,0.044872]
[1741380991377,49.62,145.23,145.12,1.19838837]
[1741380991580,41.32781326,145.18,144.96,41.32781326]
[1741380991774,41.32781326,145.17,144.93,1.8549]
[1741380992178,255.5,145.23,144.93,1.8549]
[1741380992377,41.32781326,145.09,144.94,1.19979314]
[1741380992572,41.32781326,145.05,144.94,1.19979314]
[1741380992780,41.32781326,145.13,144.91,1.9687]
[1741380992981,9.607e-05,145.01,144.92,43.15751326]
[1741380993278,53.76,145.04,144.92,1.8297]
[1741380993482,54.14,145.1,144.92,1.8297]
[1741380993681,41.32781326,145.07,144.92,1.8297]
[1741380994079,0.04484285,145.01,144.98,0.04891762]
[1741380994281,41.32781326,144.99,144.91,1.20018624]
[1741380994481,41.32781326,144.95,144.89,0.2760715]
[1741380994786,41.32781326,144.98,144.89,0.2760715]
[1741380994979,41.32781326,144.94,144.89,0.2760715]
[1741380995185,41.32781326,144.9,144.74,3.6424]
[1741380995385,41.32781326,144.94,144.74,3.6424]
[1741380995579,41.32781326,145.01,144.78,41.32781326]
[1741380995775,41.32781326,145.01,144.74,7.1024]
[1741380995776,41.32781326,144.97,144.83,0.04728427]
[1741380995977,41.32781326,145.0,144.78,41.32781326]
[1741380996178,41.32781326,144.96,144.77,206.38]
[1741380996380,41.32781326,144.92,144.77,206.38]
[1741380996581,55.46,144.91,144.74,4.84370487]
[1741380996783,55.46,144.91,144.74,44.97021326]
[1741380996983,4.854e-05,144.86,144.83,0.04454884]
[1741380997179,55.68,145.1,144.84,55.68]
[1741380997482,41.32781326,145.15,144.96,41.32781326]
[1741380997687,55.78,145.19,145.0,41.32781326]
[1741380997882,55.78,145.19,145.04,41.32781326]
[1741380998181,41.32781326,145.14,144.97,3.6777]
[1741380998480,41.32781326,145.1,144.92,1.8661]
[1741380998686,41.32781326,145.02,144.87,3.7511]
[1741380998877,56.06,145.01,144.87,3.7511]
[1741380999077,0.04662411,144.96,144.93,0.04600302]
[1741380999274,0.04662411,144.96,144.78,206.58]
[1741380999275,41.32781326,144.94,144.79,1.20099393]
[1741380999477,41.32781326,144.9,144.79,6.9075]
[1741380999679,41.32781326,144.9,144.73,1.8661]
[1741380999880,41.32781326,144.9,144.71,1.20163671]
[1741381000087,56.24,144.93,144.7,1.8637]
[1741381000285,41.32781326,144.87,144.7,1.8637]
[1741381000589,41.37205931,144.83,144.8,0.04796507]
[1741381000785,56.22,144.82,144.64,2.47122023]
[1741381000982,41.32781326,144.83,144.61,43.24651326]
[1741381001175,56.34,144.86,144.65,41.32781326]
[1741381001380,41.32781326,144.9,144.69,41.32781326]
[1741381001582,56.68,144.89,144.7,206.8]
[1741381001887,41.32781326,144.94,144.62,1.38293458]
[1741381002087,0.0528011,144.81,144.62,42.71074784]
[1741381002278,0.0528011,144.81,144.63,1.20228019]
[1741381002483,41.32781326,144.82,144.62,1.38293458]
[1741381002684,0.05137284,144.73,144.62,1.38293458]
[1741381002886,41.32781326,144.7,144.62,1.20263335]
[1741381003086,41.32781326,144.66,144.58,570.07410033]
[1741381003392,41.32781326,144.62,144.58,570.07410033]
[1741381003586,0.04359069,144.67,144.45,1.9918]
[1741381003587,41.74121857,144.59,144.45,1.9918]
[1741381003782,41.74121857,144.59,144.48,6.9224]
[1741381003983,41.74121857,144.55,144.44,0.4333995]
[1741381004282,41.74121857,144.51,144.44,0.4333995]
[1741381004590,41.74121857,144.47,144.35,0.49287578]
[1741381004886,41.74121857,144.47,144.14,13.8777]
[1741381004887,41.74121857,144.43,144.26,1.69306971]
[1741381005087,56.78,144.42,144.26,0.4877288]
[1741381005287,206.96,144.48,144.26,0.4877288]
[1741381005484,0.04528764,144.37,144.26,0.4877288]
[1741381005681,57.1,144.4,144.26,0.4877288]
[1741381005887,6.9274,144.38,144.26,0.4877288]
[1741381006192,48.50535789,144.34,144.26,0.4877288]
[1741381006379,6.9351,144.22,144.13,0.52951283]
[1741381006584,57.14,144.21,144.08,0.43056981]
[1741381006887,0.0456187,144.21,144.08,0.43056981]
[1741381007082,206.96,144.23,144.08,0.43056981]
[1741381007292,57.28,144.2,144.08,0.43056981]
[1741381007590,124.0,144.36,144.08,0.43056981]
[1741381007591,0.04859902,144.16,144.14,6.9388]
[1741381007788,48.50535789,144.38,144.11,48.50535789]
[1741381007980,1.38542532,144.36,144.12,58.8]
[1741381008180,1.38542532,144.36,144.09,1.8676]
[1741381008387,48.50535789,144.26,144.1,1.38792505]
[1741381008686,48.50535789,144.11,143.82,0.48000758]
[1741381008889,48.50535789,144.06,143.82,0.48000758]
[1741381009191,48.50535789,143.93,143.77,0.44235392]
[1741381009382,48.50535789,143.93,143.73,0.45568451]
[1741381009383,48.50535789,143.83,143.73,0.45568451]
[1741381009693,7.24,143.82,143.73,0.45568451]
[1741381009891,0.04427859,143.79,143.77,0.05017728]
[1741381010193,7.22,143.78,143.64,0.5848919]
[1741381010491,48.50535789,143.76,143.64,0.5848919]
[1741381010891,48.50535789,143.83,143.64,0.5848919]
[1741381010892,6.94,143.79,143.64,0.5848919]
[1741381011296,6.94,143.79,143.55,0.47513489]
[1741381011297,0.05317788,143.73,143.55,0.47513489]
[1741381011690,48.50535789,143.61,143.55,0.47513489]
[1741381011891,48.50535789,143.56,143.33,0.41544665]
[1741381012191,48.50535789,143.46,143.33,0.41544665]
[1741381012386,207.66,143.57,143.33,0.41544665]
[1741381012582,0.04742389,143.46,143.33,0.41544665]
[1741381012989,48.50535789,143.71,143.38,48.50535789]
[1741381013193,1.2127971,143.72,143.44,48.50535789]
[1741381013390,1.2127971,143.72,143.45,1.64704534]
[1741381013585,1.2127971,143.72,143.46,208.16]
[1741381013785,0.2349,144.01,143.6,48.50535789]
[1741381013985,0.2349,144.01,143.45,208.16]
[1741381014196,48.50535789,143.78,143.4,210.1524]
[1741381014389,0.2349,144.01,143.57,48.50535789]
[1741381014584,0.2349,144.01,143.39,1.9664]
[1741381014585,0.05103875,143.74,143.72,0.04450035]
[1741381015590,0.05103875,143.74,143.59,48.50535789]
[1741381015889,208.36,144.16,143.73,48.50535789]
[1741381016095,48.50535789,143.99,143.68,48.50535789]
[1741381016293,48.50535789,144.09,143.79,48.50535789]
[1741381016498,48.50535789,144.09,143.68,48.50535789]
[1741381016697,48.50535789,144.04,143.74,48.50535789]